[Event "NK ABC Kwalificatie 2"]
[Site "Zoetermeer, Netherlands"]
[Date "????.??.??"]
[Round "7.8"]
[White "Lopes, Samuel"]
[Black "Madularea, David"]
[Result "0-1"]
[TimeControl "55+10"]
[WhiteFideId "8763414"]
[BlackFideId "8700494"]
[WhiteElo "1990"]
[BlackElo "2232"]

1. e4 {[%clk 00:55:18]} {[%emt 00:00:01]} e6 {[%clk 00:55:11]} {[%emt
00:00:09]} 2. d4 {[%clk 00:55:09]} {[%emt 00:00:18]} d5 {[%clk 00:55:18]}
{[%emt 00:00:04]} 3. exd5 {[%clk 00:55:00]} {[%emt 00:00:19]} exd5 {[%clk
00:55:01]} {[%emt 00:00:27]} 4. c4 {[%clk 00:55:03]} {[%emt 00:00:07]} Nf6
{[%clk 00:55:09]} {[%emt 00:00:02]} 5. Nc3 {[%clk 00:55:04]} {[%emt 00:00:09]}
Bb4 {[%clk 00:55:16]} {[%emt 00:00:02]} 6. Nf3 {[%clk 00:55:05]} {[%emt
00:00:09]} O-O {[%clk 00:54:56]} {[%emt 00:00:30]} 7. Bd3 {[%clk 00:55:07]}
{[%emt 00:00:08]} dxc4 {[%clk 00:52:56]} {[%emt 00:02:59]} 8. Bxc4 {[%clk
00:54:33]} {[%emt 00:00:15]} Bg4 {[%clk 00:52:23]} {[%emt 00:00:43]} 9. O-O
{[%clk 00:50:52]} {[%emt 00:03:51]} Nc6 {[%clk 00:51:30]} {[%emt 00:01:03]} 10.
Be3 {[%clk 00:41:26]} {[%emt 00:09:36]} Qd7 {[%clk 00:45:33]} {[%emt 00:06:06]}
11. d5 {[%clk 00:37:18]} {[%emt 00:04:19]} Bxf3 {[%clk 00:45:27]} {[%emt
00:00:17]} 12. Qxf3 {[%clk 00:29:42]} {[%emt 00:07:45]} Ne5 {[%clk 00:45:17]}
{[%emt 00:00:19]} 13. Qe2 {[%clk 00:29:22]} {[%emt 00:00:31]} Nxc4 {[%clk
00:45:17]} {[%emt 00:00:10]} 14. Qxc4 {[%clk 00:29:29]} {[%emt 00:00:03]} Bxc3
{[%clk 00:45:16]} {[%emt 00:00:10]} 15. bxc3 {[%clk 00:29:15]} {[%emt
00:00:24]} Nxd5 {[%clk 00:44:59]} {[%emt 00:00:26]} 16. Qd3 {[%clk 00:27:24]}
{[%emt 00:02:02]} Rad8 {[%clk 00:42:20]} {[%emt 00:02:49]} 17. Bc5 {[%clk
00:26:19]} {[%emt 00:01:16]} Rfe8 {[%clk 00:42:10]} {[%emt 00:00:19]} 18. Qf3
{[%clk 00:24:58]} {[%emt 00:01:31]} b6 {[%clk 00:39:49]} {[%emt 00:02:31]} 19.
Rad1 {[%clk 00:22:02]} {[%emt 00:03:07]} bxc5 {[%clk 00:38:50]} {[%emt
00:01:08]} 20. c4 {[%clk 00:22:04]} {[%emt 00:00:08]} c6 {[%clk 00:38:53]}
{[%emt 00:00:07]} 21. Rd2 {[%clk 00:20:33]} {[%emt 00:01:42]} Qe6 {[%clk
00:38:21]} {[%emt 00:00:40]} 22. cxd5 {[%clk 00:20:17]} {[%emt 00:00:27]} cxd5
{[%clk 00:38:23]} {[%emt 00:00:08]} 23. h3 {[%clk 00:20:07]} {[%emt 00:00:20]}
d4 {[%clk 00:36:22]} {[%emt 00:02:10]} 24. Rfd1 {[%clk 00:19:55]} {[%emt
00:00:22]} h6 {[%clk 00:35:23]} {[%emt 00:01:10]} 25. Qa3 {[%clk 00:19:50]}
{[%emt 00:00:15]} c4 {[%clk 00:33:58]} {[%emt 00:01:34]} 26. Qxa7 {[%clk
00:19:34]} {[%emt 00:00:26]} d3 {[%clk 00:33:44]} {[%emt 00:00:24]} 27. Qc5
{[%clk 00:18:48]} {[%emt 00:00:57]} Rc8 {[%clk 00:33:35]} {[%emt 00:00:19]} 28.
Qb4 {[%clk 00:18:44]} {[%emt 00:00:14]} Red8 {[%clk 00:32:59]} {[%emt
00:00:46]} 29. Qc3 {[%clk 00:18:30]} {[%emt 00:00:25]} Qf6 {[%clk 00:32:07]}
{[%emt 00:01:01]} 30. Qa3 {[%clk 00:17:09]} {[%emt 00:01:31]} Qd4 {[%clk
00:29:49]} {[%emt 00:02:28]} 31. Qc1 {[%clk 00:16:45]} {[%emt 00:00:34]} c3
{[%clk 00:28:52]} {[%emt 00:01:07]} 32. Rxd3 {[%clk 00:16:45]} {[%emt
00:00:10]} Qxd3 {[%clk 00:28:58]} {[%emt 00:00:04]} 33. Rxd3 {[%clk 00:16:52]}
{[%emt 00:00:02]} Rxd3 {[%clk 00:29:00]} {[%emt 00:00:09]} 34. Kf1 {[%clk
00:16:42]} {[%emt 00:00:20]} c2 {[%clk 00:29:02]} {[%emt 00:00:07]} 0-1

[Event "NK ABC Kwalificatie 2"]
[Site "Zoetermeer, Netherlands"]
[Date "????.??.??"]
[Round "7.9"]
[White "De Wit, Evan"]
[Black "Krylov, Philippe"]
[Result "0-1"]
[TimeControl "55+10"]
[WhiteFideId "8935949"]
[BlackFideId "8776240"]
[WhiteElo "1955"]
[BlackElo "2035"]

1. d4 {[%clk 00:55:17]} {[%emt 00:00:02]} Nf6 {[%clk 00:55:16]} {[%emt
00:00:04]} 2. c4 {[%clk 00:55:23]} {[%emt 00:00:05]} e6 {[%clk 00:55:22]}
{[%emt 00:00:04]} 3. Nc3 {[%clk 00:55:28]} {[%emt 00:00:04]} Bb4 {[%clk
00:55:28]} {[%emt 00:00:05]} 4. e3 {[%clk 00:55:30]} {[%emt 00:00:08]} O-O
{[%clk 00:55:32]} {[%emt 00:00:06]} 5. Bd3 {[%clk 00:55:29]} {[%emt 00:00:10]}
d5 {[%clk 00:54:37]} {[%emt 00:01:04]} 6. cxd5 {[%clk 00:55:26]} {[%emt
00:00:14]} exd5 {[%clk 00:54:05]} {[%emt 00:00:43]} 7. a3 {[%clk 00:55:30]}
{[%emt 00:00:05]} Be7 {[%clk 00:53:49]} {[%emt 00:00:26]} 8. Nge2 {[%clk
00:55:24]} {[%emt 00:00:15]} c6 {[%clk 00:53:38]} {[%emt 00:00:21]} 9. O-O
{[%clk 00:55:20]} {[%emt 00:00:13]} Nbd7 {[%clk 00:51:11]} {[%emt 00:02:38]} 10.
Qc2 {[%clk 00:54:14]} {[%emt 00:01:17]} Re8 {[%clk 00:51:06]} {[%emt 00:00:14]}
11. b4 {[%clk 00:53:16]} {[%emt 00:01:08]} a6 {[%clk 00:50:09]} {[%emt
00:01:08]} 12. f3 {[%clk 00:52:52]} {[%emt 00:00:33]} Nf8 {[%clk 00:47:48]}
{[%emt 00:02:31]} 13. Bd2 {[%clk 00:51:38]} {[%emt 00:01:23]} Ne6 {[%clk
00:47:02]} {[%emt 00:00:57]} 14. Be1 {[%clk 00:51:37]} {[%emt 00:00:11]} g6
{[%clk 00:46:36]} {[%emt 00:00:36]} 15. Bf2 {[%clk 00:51:25]} {[%emt 00:00:21]}
Ng7 {[%clk 00:43:37]} {[%emt 00:03:09]} 16. Kh1 {[%clk 00:50:56]} {[%emt
00:00:39]} Bf8 {[%clk 00:41:45]} {[%emt 00:02:02]} 17. e4 {[%clk 00:49:16]}
{[%emt 00:01:51]} dxe4 {[%clk 00:41:21]} {[%emt 00:00:35]} 18. fxe4 {[%clk
00:49:05]} {[%emt 00:00:20]} Ng4 {[%clk 00:41:17]} {[%emt 00:00:14]} 19. Bg1
{[%clk 00:48:45]} {[%emt 00:00:30]} Ne6 {[%clk 00:40:17]} {[%emt 00:01:11]} 20.
Rad1 {[%clk 00:46:21]} {[%emt 00:02:33]} Qg5 {[%clk 00:38:36]} {[%emt
00:01:51]} 21. d5 {[%clk 00:44:05]} {[%emt 00:02:27]} Nd8 {[%clk 00:38:07]}
{[%emt 00:00:39]} 22. h3 {[%clk 00:40:24]} {[%emt 00:03:50]} Ne3 {[%clk
00:35:30]} {[%emt 00:02:47]} 23. Bxe3 {[%clk 00:40:10]} {[%emt 00:00:24]} Qxe3
{[%clk 00:35:38]} {[%emt 00:00:02]} 24. Rf3 {[%clk 00:39:58]} {[%emt 00:00:22]}
Qg5 {[%clk 00:35:27]} {[%emt 00:00:21]} 25. Bc4 {[%clk 00:38:47]} {[%emt
00:01:21]} Bg7 {[%clk 00:31:31]} {[%emt 00:04:07]} 26. Rdf1 {[%clk 00:36:46]}
{[%emt 00:02:10]} Rf8 {[%clk 00:28:49]} {[%emt 00:02:53]} 27. Qa2 {[%clk
00:30:49]} {[%emt 00:06:07]} Qe7 {[%clk 00:28:33]} {[%emt 00:00:26]} 28. Qd2
{[%clk 00:25:37]} {[%emt 00:05:22]} Be5 {[%clk 00:26:34]} {[%emt 00:02:10]} 29.
Qe3 {[%clk 00:23:05]} {[%emt 00:02:41]} Kh8 {[%clk 00:26:09]} {[%emt 00:00:35]}
30. Na4 {[%clk 00:17:16]} {[%emt 00:05:59]} cxd5 {[%clk 00:17:21]} {[%emt
00:08:59]} 31. Bxd5 {[%clk 00:17:08]} {[%emt 00:00:17]} Be6 {[%clk 00:16:51]}
{[%emt 00:00:40]} 32. Nb6 {[%clk 00:16:27]} {[%emt 00:00:51]} Rb8 {[%clk
00:16:56]} {[%emt 00:00:06]} 33. Nc3 {[%clk 00:16:05]} {[%emt 00:00:32]} Nc6
{[%clk 00:16:11]} {[%emt 00:00:53]} 34. Bxe6 {[%clk 00:14:15]} {[%emt
00:02:01]} fxe6 {[%clk 00:15:49]} {[%emt 00:00:32]} 35. Ne2 {[%clk 00:12:20]}
{[%emt 00:02:05]} Rxf3 {[%clk 00:14:15]} {[%emt 00:01:44]} 36. Qxf3 {[%clk
00:11:21]} {[%emt 00:01:09]} Kg7 {[%clk 00:14:18]} {[%emt 00:00:07]} 37. Nc4
{[%clk 00:09:38]} {[%emt 00:01:52]} Rf8 {[%clk 00:13:11]} {[%emt 00:01:18]} 38.
Qf4 {[%emt 00:00:11]} Rf7 39. Qxf7+ {[%clk 00:09:37]} Qxf7 40. Rxf7+ {[%clk
00:09:39]} Kf8 {[%clk 00:13:16]} {[%emt 00:00:03]} 0-1

[Event "NK ABC Kwalificatie 2"]
[Site "Zoetermeer, Netherlands"]
[Date "????.??.??"]
[Round "7.10"]
[White "Van Batenburg, Mees"]
[Black "Woldhuis, Marnik"]
[Result "1-0"]
[TimeControl "55+10"]
[WhiteFideId "8762545"]
[BlackFideId "8820218"]
[WhiteElo "2221"]
[BlackElo "1989"]

1. e4 {[%clk 00:54:57]} {[%emt 00:00:22]} d5 {[%clk 00:55:14]} {[%emt
00:00:06]} 2. exd5 {[%clk 00:54:41]} {[%emt 00:00:26]} Qxd5 {[%clk 00:55:22]}
{[%emt 00:00:02]} 3. Nc3 {[%clk 00:54:46]} {[%emt 00:00:05]} Qa5 {[%clk
00:55:27]} {[%emt 00:00:05]} 4. d4 {[%clk 00:54:39]} {[%emt 00:00:06]} Nf6
{[%clk 00:55:33]} {[%emt 00:00:14]} 5. Bc4 {[%clk 00:54:34]} {[%emt 00:00:15]}
Bg4 {[%clk 00:54:29]} {[%emt 00:01:13]} 6. f3 {[%clk 00:54:23]} {[%emt
00:00:22]} Bf5 {[%clk 00:54:20]} {[%emt 00:00:17]} 7. Bd2 {[%clk 00:53:59]}
{[%emt 00:00:34]} Qb6 {[%clk 00:54:09]} {[%emt 00:00:20]} 8. Nge2 {[%clk
00:53:16]} {[%emt 00:00:54]} g6 {[%clk 00:53:19]} {[%emt 00:01:01]} 9. g4
{[%clk 00:45:48]} {[%emt 00:07:38]} Bd7 {[%clk 00:52:10]} {[%emt 00:01:18]} 10.
Bb3 {[%clk 00:43:16]} {[%emt 00:02:42]} Bg7 {[%clk 00:50:20]} {[%emt 00:02:00]}
11. Bf4 {[%clk 00:40:33]} {[%emt 00:02:54]} g5 {[%clk 00:47:03]} {[%emt
00:03:27]} 12. Bxg5 {[%clk 00:36:28]} {[%emt 00:04:15]} h5 {[%clk 00:46:51]}
{[%emt 00:00:22]} 13. gxh5 {[%clk 00:33:55]} {[%emt 00:02:43]} Rxh5 {[%clk
00:45:38]} {[%emt 00:01:23]} 14. Qd2 {[%clk 00:31:21]} {[%emt 00:02:45]} Nc6
{[%clk 00:40:11]} {[%emt 00:05:36]} 15. O-O-O {[%clk 00:21:24]} {[%emt
00:10:07]} Na5 {[%clk 00:38:06]} {[%emt 00:02:16]} 16. h4 {[%clk 00:19:54]}
{[%emt 00:01:40]} Nxb3+ {[%clk 00:37:35]} {[%emt 00:00:42]} 17. axb3 {[%clk
00:19:46]} {[%emt 00:00:17]} O-O-O {[%clk 00:37:00]} {[%emt 00:00:45]} 18. Ng3
{[%clk 00:18:52]} {[%emt 00:01:03]} Rhh8 {[%clk 00:36:24]} {[%emt 00:00:44]} 19.
h5 {[%clk 00:16:02]} {[%emt 00:03:02]} Rdg8 {[%clk 00:31:36]} {[%emt 00:04:57]}
20. Rdg1 {[%clk 00:12:13]} {[%emt 00:03:59]} Qa5 {[%clk 00:27:50]} {[%emt
00:03:56]} 21. Kb1 {[%clk 00:09:35]} {[%emt 00:02:49]} Bc6 {[%clk 00:24:53]}
{[%emt 00:03:07]} 22. h6 {[%clk 00:04:36]} {[%emt 00:05:10]} Bf8 {[%clk
00:24:06]} {[%emt 00:00:56]} 23. Nge4 {[%clk 00:04:00]} {[%emt 00:00:46]} Nxe4
{[%clk 00:21:55]} {[%emt 00:02:21]} 24. fxe4 {[%clk 00:03:49]} {[%emt
00:00:22]} f6 {[%clk 00:21:20]} {[%emt 00:00:44]} 25. Be3 {[%clk 00:03:34]}
{[%emt 00:00:26]} Rxg1+ {[%clk 00:20:56]} {[%emt 00:00:33]} 26. Rxg1 {[%clk
00:03:32]} {[%emt 00:00:11]} Qh5 {[%clk 00:20:41]} {[%emt 00:00:25]} 27. d5
{[%clk 00:03:20]} {[%emt 00:00:23]} Be8 {[%clk 00:20:26]} {[%emt 00:00:25]} 28.
Qc1 {[%clk 00:02:19]} {[%emt 00:01:11]} Bg6 {[%clk 00:18:25]} {[%emt 00:02:09]}
29. Rh1 {[%clk 00:01:41]} {[%emt 00:00:50]} Qf3 {[%clk 00:16:43]} {[%emt
00:01:52]} 30. Rf1 {[%clk 00:00:31]} {[%emt 00:01:21]} Qh5 {[%clk 00:16:00]}
{[%emt 00:00:52]} 31. Bf4 {[%clk 00:00:18]} {[%emt 00:00:24]} Rh7 {[%clk
00:14:46]} {[%emt 00:01:23]} 32. Rh1 {[%clk 00:00:23]} {[%emt 00:00:07]} Qf3
{[%clk 00:14:42]} {[%emt 00:00:12]} 33. Rg1 {[%clk 00:00:22]} {[%emt 00:00:13]}
Qh5 {[%clk 00:13:58]} {[%emt 00:00:53]} 34. Rh1 {[%clk 00:00:12]} {[%emt
00:00:20]} Qf3 {[%clk 00:13:54]} {[%emt 00:00:13]} 35. Rg1 {[%clk 00:00:16]}
{[%emt 00:00:07]} Bxe4 {[%clk 00:13:21]} {[%emt 00:00:43]} 36. Rg3 {[%clk
00:00:15]} {[%emt 00:00:11]} Qh1 {[%clk 00:12:39]} {[%emt 00:00:51]} 37. Qxh1
{[%clk 00:00:24]} {[%emt 00:00:01]} Bxh1 {[%clk 00:12:31]} {[%emt 00:00:18]} 38.
Rg8 {[%clk 00:00:33]} {[%emt 00:00:01]} Rf7 {[%clk 00:12:21]} {[%emt 00:00:19]}
39. h7 {[%clk 00:00:43]} Rxh7 {[%clk 00:12:22]} {[%emt 00:00:11]} 40. Rxf8+
{[%clk 00:00:52]} Kd7 {[%clk 00:12:21]} {[%emt 00:00:12]} 41. Rb8 {[%clk
00:00:41]} {[%emt 00:00:21]} e5 {[%clk 00:11:53]} {[%emt 00:00:37]} 42. dxe6+
{[%clk 00:00:49]} {[%emt 00:00:02]} Kxe6 {[%clk 00:11:57]} {[%emt 00:00:06]} 43.
Be3 {[%clk 00:00:53]} {[%emt 00:00:06]} a6 {[%clk 00:11:53]} {[%emt 00:00:14]}
44. Re8+ {[%clk 00:00:23]} {[%emt 00:00:40]} Kf5 {[%clk 00:11:27]} {[%emt
00:00:36]} 45. Ne2 {[%clk 00:00:28]} {[%emt 00:00:05]} Bd5 {[%clk 00:10:48]}
{[%emt 00:00:47]} 46. Nd4+ {[%clk 00:00:29]} {[%emt 00:00:11]} Kg4 {[%clk
00:10:29]} {[%emt 00:00:28]} 47. Rd8 {[%clk 00:00:25]} {[%emt 00:00:14]} c6
{[%clk 00:10:19]} {[%emt 00:00:20]} 48. c4 {[%clk 00:00:23]} {[%emt 00:00:13]}
Be4+ {[%clk 00:10:05]} {[%emt 00:00:24]} 49. Ka2 {[%clk 00:00:31]} {[%emt
00:00:02]} Rg7 {[%clk 00:09:45]} {[%emt 00:00:29]} 50. Rf8 {[%clk 00:00:28]}
{[%emt 00:00:14]} f5 {[%clk 00:09:37]} {[%emt 00:00:18]} 51. b4 {[%clk
00:00:14]} {[%emt 00:00:25]} b5 {[%clk 00:08:38]} {[%emt 00:01:09]} 52. b3
{[%clk 00:00:13]} {[%emt 00:00:11]} Rg6 {[%clk 00:08:11]} {[%emt 00:00:37]} 53.
Kb2 {[%clk 00:00:17]} {[%emt 00:00:06]} Bd3 {[%clk 00:07:26]} {[%emt 00:00:54]}
54. Kc3 {[%clk 00:00:26]} {[%emt 00:00:02]} Be4 {[%clk 00:07:29]} {[%emt
00:00:07]} 55. Rf7 {[%clk 00:00:33]} {[%emt 00:00:03]} Bb1 {[%clk 00:06:56]}
{[%emt 00:00:43]} 56. Rf8 {[%clk 00:00:41]} {[%emt 00:00:02]} Be4 {[%clk
00:06:59]} {[%emt 00:00:06]} 57. Re8 {[%clk 00:00:36]} {[%emt 00:00:15]} Bg2
{[%clk 00:06:10]} {[%emt 00:00:59]} 58. Re6 {[%clk 00:00:35]} {[%emt 00:00:12]}
Rxe6 {[%clk 00:05:42]} {[%emt 00:00:38]} 59. Nxe6 {[%clk 00:00:44]} {[%emt
00:00:01]} Bh1 {[%clk 00:05:28]} {[%emt 00:00:24]} 60. Kd4 {[%clk 00:00:41]}
{[%emt 00:00:13]} Bf3 {[%clk 00:05:19]} {[%emt 00:00:19]} 61. Nc5 {[%clk
00:00:19]} {[%emt 00:00:32]} f4 {[%clk 00:05:13]} {[%emt 00:00:15]} 62. Bf2
{[%clk 00:00:27]} {[%emt 00:00:02]} Bd1 {[%clk 00:05:05]} {[%emt 00:00:18]} 63.
Nxa6 {[%clk 00:00:16]} {[%emt 00:00:21]} Bxb3 {[%clk 00:05:10]} {[%emt
00:00:05]} 64. c5 {[%clk 00:00:14]} {[%emt 00:00:13]} Bd5 {[%clk 00:05:12]}
{[%emt 00:00:07]} 65. Nc7 {[%clk 00:00:22]} {[%emt 00:00:02]} Bh1 {[%clk
00:05:17]} {[%emt 00:00:05]} 66. Ne6 {[%clk 00:00:19]} {[%emt 00:00:14]} Bd5
{[%clk 00:05:07]} {[%emt 00:00:19]} 67. Ke5 {[%clk 00:00:20]} {[%emt 00:00:09]}
f3 {[%clk 00:05:02]} {[%emt 00:00:15]} 68. Nf4 {[%clk 00:00:21]} {[%emt
00:00:09]} Bf7 {[%emt 00:00:39]} 69. Nd3 {[%clk 00:00:21]} Bc4 {[%clk
00:04:41]} {[%emt 00:00:12]} 70. Kd4 {[%clk 00:00:19]} {[%emt 00:00:12]} Bd5
{[%clk 00:04:30]} {[%emt 00:00:22]} 71. Ke3 {[%clk 00:00:20]} {[%emt 00:00:09]}
Kf5 {[%clk 00:04:17]} {[%emt 00:00:23]} 72. Nf4 {[%clk 00:00:24]} {[%emt
00:00:07]} Be4 {[%clk 00:04:22]} {[%emt 00:00:05]} 73. Be1 {[%clk 00:00:17]}
{[%emt 00:00:16]} Ke5 {[%clk 00:04:28]} {[%emt 00:00:03]} 74. Nd3+ {[%clk
00:00:20]} {[%emt 00:00:07]} Kf5 {[%clk 00:04:37]} 75. Nf2 {[%clk 00:00:29]}
{[%emt 00:00:01]} Bd5 {[%clk 00:04:43]} {[%emt 00:00:04]} 76. Bc3 {[%clk
00:00:36]} {[%emt 00:00:03]} Kg5 {[%clk 00:04:48]} {[%emt 00:00:04]} 77. Be5
{[%clk 00:00:44]} {[%emt 00:00:02]} Kf5 {[%clk 00:04:55]} {[%emt 00:00:03]} 78.
Bg3 {[%clk 00:00:52]} {[%emt 00:00:03]} Kg5 {[%clk 00:05:03]} {[%emt 00:00:02]}
79. Kd4 {[%clk 00:00:56]} {[%emt 00:00:06]} Kf5 {[%clk 00:05:11]} {[%emt
00:00:01]} 80. Bd6 {[%clk 00:00:55]} {[%emt 00:00:12]} Bc4 {[%clk 00:05:17]}
{[%emt 00:00:04]} 81. Ke3 {[%clk 00:00:59]} {[%emt 00:00:06]} Bd5 {[%clk
00:05:26]} {[%emt 00:00:02]} 82. Nd3 {[%clk 00:01:08]} Kg4 {[%clk 00:05:30]}
{[%emt 00:00:06]} 83. Nf2+ {[%clk 00:01:13]} {[%emt 00:00:05]} Kf5 {[%clk
00:05:38]} {[%emt 00:00:01]} 84. Nh3 {[%clk 00:00:56]} {[%emt 00:00:27]} Kg4
{[%clk 00:05:34]} {[%emt 00:00:14]} 85. Nf4 {[%clk 00:00:44]} {[%emt 00:00:23]}
Bc4 {[%clk 00:05:25]} {[%emt 00:00:18]} 86. Ng6 {[%clk 00:00:52]} {[%emt
00:00:03]} Bd5 {[%clk 00:05:25]} {[%emt 00:00:09]} 87. Ne5+ {[%clk 00:01:00]}
{[%emt 00:00:03]} 1-0

[Event "NK ABC Kwalificatie 2"]
[Site "Zoetermeer, Netherlands"]
[Date "????.??.??"]
[Round "7.11"]
[White "Groenewoud, Joel"]
[Black "Van Haaften, Jelle"]
[Result "0-1"]
[TimeControl "55+10"]
[WhiteFideId "8936114"]
[BlackFideId "8687283"]
[WhiteElo "2146"]
[BlackElo "1897"]

1. e4 {[%clk 00:55:01]} {[%emt 00:00:18]} c6 {[%clk 00:55:19]} {[%emt
00:00:02]} 2. Nf3 {[%clk 00:54:57]} {[%emt 00:00:15]} d5 {[%clk 00:55:21]}
{[%emt 00:00:08]} 3. d3 {[%clk 00:55:02]} {[%emt 00:00:05]} dxe4 {[%clk
00:54:24]} {[%emt 00:01:05]} 4. dxe4 {[%clk 00:55:06]} {[%emt 00:00:07]} Qxd1+
{[%clk 00:54:24]} {[%emt 00:00:09]} 5. Kxd1 {[%clk 00:55:13]} {[%emt 00:00:03]}
Bg4 {[%clk 00:54:00]} {[%emt 00:00:32]} 6. Be2 {[%clk 00:55:06]} {[%emt
00:00:19]} Nd7 {[%clk 00:54:00]} {[%emt 00:00:10]} 7. Nfd2 {[%clk 00:54:21]}
{[%emt 00:00:56]} Bxe2+ {[%clk 00:53:47]} {[%emt 00:00:23]} 8. Kxe2 {[%clk
00:54:25]} {[%emt 00:00:06]} Ngf6 {[%clk 00:53:22]} {[%emt 00:00:34]} 9. a4
{[%clk 00:53:37]} {[%emt 00:00:59]} e6 {[%clk 00:51:09]} {[%emt 00:02:23]} 10.
Nc3 {[%clk 00:52:23]} {[%emt 00:01:25]} Bb4 {[%clk 00:49:42]} {[%emt 00:01:35]}
11. a5 {[%clk 00:49:27]} {[%emt 00:03:08]} O-O {[%clk 00:45:50]} {[%emt
00:04:00]} 12. f3 {[%clk 00:45:38]} {[%emt 00:04:00]} Rfd8 {[%clk 00:42:34]}
{[%emt 00:03:25]} 13. Nd1 {[%clk 00:43:48]} {[%emt 00:02:01]} Nf8 {[%clk
00:40:45]} {[%emt 00:01:58]} 14. c3 {[%clk 00:41:53]} {[%emt 00:02:06]} Bd6
{[%clk 00:40:23]} {[%emt 00:00:32]} 15. Nc4 {[%clk 00:40:54]} {[%emt 00:01:08]}
Bc7 {[%clk 00:39:47]} {[%emt 00:00:46]} 16. Be3 {[%clk 00:37:35]} {[%emt
00:03:28]} Nh5 {[%clk 00:36:29]} {[%emt 00:03:27]} 17. g3 {[%clk 00:33:48]}
{[%emt 00:03:58]} f5 {[%clk 00:30:02]} {[%emt 00:06:36]} 18. e5 {[%clk
00:31:44]} {[%emt 00:02:14]} f4 {[%clk 00:28:19]} {[%emt 00:01:53]} 19. g4
{[%clk 00:25:47]} {[%emt 00:06:07]} fxe3 {[%clk 00:27:10]} {[%emt 00:01:19]} 20.
gxh5 {[%clk 00:25:38]} {[%emt 00:00:19]} Nd7 {[%clk 00:26:53]} {[%emt
00:00:26]} 21. f4 {[%clk 00:24:52]} {[%emt 00:00:58]} Rf8 {[%clk 00:26:36]}
{[%emt 00:00:25]} 22. Rf1 {[%clk 00:22:45]} {[%emt 00:02:18]} Rf5 {[%clk
00:25:56]} {[%emt 00:00:48]} 23. Ndxe3 {[%clk 00:22:18]} {[%emt 00:00:39]} Rxh5
{[%clk 00:24:21]} {[%emt 00:01:45]} 24. Rf2 {[%clk 00:21:24]} {[%emt 00:01:04]}
Rf8 {[%clk 00:23:06]} {[%emt 00:01:23]} 25. Rd1 {[%clk 00:20:26]} {[%emt
00:01:11]} Nc5 {[%clk 00:22:00]} {[%emt 00:01:15]} 26. Nd2 {[%emt 00:11:17]}
Rd8 {[%clk 00:21:19]} 27. Ndf1 {[%clk 00:06:27]} {[%emt 00:03:54]} Rxd1 {[%clk
00:19:51]} {[%emt 00:01:37]} 28. Nxd1 {[%clk 00:06:18]} {[%emt 00:00:20]} Rh4
{[%clk 00:13:54]} {[%emt 00:06:07]} 29. b4 {[%clk 00:05:22]} {[%emt 00:01:06]}
Nd7 {[%clk 00:13:20]} {[%emt 00:00:44]} 30. Nde3 {[%clk 00:03:56]} {[%emt
00:01:36]} g5 {[%clk 00:12:31]} {[%emt 00:00:59]} 31. f5 {[%clk 00:03:46]}
{[%emt 00:00:19]} Nf8 {[%clk 00:11:45]} {[%emt 00:00:55]} 32. Nd2 {[%clk
00:01:58]} {[%emt 00:01:59]} Rf4 {[%clk 00:10:51]} {[%emt 00:01:04]} 33. Ndc4
{[%clk 00:00:53]} {[%emt 00:01:15]} Kf7 {[%clk 00:09:14]} {[%emt 00:01:48]} 34.
Rg2 {[%clk 00:00:26]} {[%emt 00:00:37]} h6 {[%clk 00:08:36]} {[%emt 00:00:48]}
35. Rg4 {[%clk 00:00:13]} {[%emt 00:00:23]} Rxg4 {[%clk 00:06:44]} {[%emt
00:02:02]} 36. Nxg4 {[%clk 00:00:15]} {[%emt 00:00:08]} exf5 {[%clk 00:05:35]}
{[%emt 00:01:19]} 37. Nxh6+ {[%clk 00:00:23]} {[%emt 00:00:02]} Ke6 {[%clk
00:04:41]} {[%emt 00:01:05]} 38. Nd6 {[%clk 00:00:18]} {[%emt 00:00:15]} Bxd6
{[%clk 00:04:38]} {[%emt 00:00:12]} 39. exd6 {[%clk 00:00:27]} {[%emt
00:00:02]} f4 {[%clk 00:04:26]} {[%emt 00:00:22]} 40. Kf3 {[%clk 00:00:35]}
{[%emt 00:00:02]} Kxd6 {[%clk 00:04:17]} {[%emt 00:00:19]} 41. Ke4 {[%clk
00:00:42]} {[%emt 00:00:03]} Ke6 {[%emt 00:00:47]} 42. Nf5 {[%clk 00:00:28]}
{[%emt 00:00:22]} Nd7 {[%clk 00:02:56]} {[%emt 00:00:56]} 43. Nd4+ {[%clk
00:00:25]} {[%emt 00:00:13]} Kf6 {[%emt 00:00:20]} 44. a6 c5 {[%clk 00:02:37]}
{[%emt 00:00:23]} 45. Nb5 {[%clk 00:00:13]} {[%emt 00:00:28]} bxa6 {[%clk
00:02:34]} {[%emt 00:00:13]} 46. Nxa7 {[%clk 00:00:15]} {[%emt 00:00:07]} cxb4
{[%clk 00:02:43]} {[%emt 00:00:02]} 47. cxb4 {[%clk 00:00:23]} {[%emt
00:00:02]} Ne5 {[%clk 00:01:32]} {[%emt 00:01:21]} 48. h3 {[%clk 00:00:21]}
{[%emt 00:00:13]} Nc4 {[%clk 00:01:10]} {[%emt 00:00:32]} 49. Nc6 {[%clk
00:00:18]} {[%emt 00:00:13]} Nd6+ {[%clk 00:00:55]} {[%emt 00:00:25]} 50. Kd4
{[%clk 00:00:12]} {[%emt 00:00:15]} Nb7 {[%clk 00:00:45]} {[%emt 00:00:20]} 0-1